[Event "NJSK 2021 Jeugd C"]
[Site "Almelo, Netherlands"]
[Date "2021.08.02"]
[Round "2.10"]
[White "Pancharajah, Abisan"]
[Black "Lopes, Samuel"]
[Result "1-0"]
[TimeControl "90min + 30sec/move"]
[WhiteElo "1650"]
[BlackElo "1124"]

1. e4 {[%clk 01:30:57]} {[%emt 00:00:02]} c5 {[%clk 01:30:52]} {[%emt
00:00:08]} 2. Nf3 {[%clk 01:31:23]} {[%emt 00:00:04]} e6 {[%clk 01:31:13]}
{[%emt 00:00:10]} 3. d4 {[%clk 01:31:48]} {[%emt 00:00:05]} cxd4 {[%clk
01:31:34]} {[%emt 00:00:08]} 4. Nxd4 {[%clk 01:32:16]} {[%emt 00:00:02]} Nf6
{[%clk 01:31:50]} {[%emt 00:00:15]} 5. Nc3 {[%clk 01:32:40]} {[%emt 00:00:06]}
Nc6 {[%clk 01:32:06]} {[%emt 00:00:13]} 6. Ndb5 {[%clk 01:32:54]} {[%emt
00:00:14]} Bb4 {[%clk 01:31:47]} {[%emt 00:00:52]} 7. a3 {[%clk 01:32:40]}
{[%emt 00:00:43]} Bxc3+ {[%clk 01:25:53]} {[%emt 00:06:24]} 8. Nxc3 {[%clk
01:32:58]} {[%emt 00:00:12]} h6 {[%clk 01:24:27]} {[%emt 00:01:57]} 9. Bd3
{[%clk 01:29:32]} {[%emt 00:03:55]} d5 {[%clk 01:22:39]} {[%emt 00:02:19]} 10.
f3 {[%clk 01:28:00]} {[%emt 00:02:01]} O-O {[%clk 01:21:58]} {[%emt 00:01:11]}
11. O-O {[%clk 01:26:56]} {[%emt 00:01:30]} a6 {[%clk 01:19:43]} {[%emt
00:02:49]} 12. Qe2 {[%clk 01:22:19]} {[%emt 00:05:06]} Rb8 {[%clk 01:18:51]}
{[%emt 00:01:24]} 13. Rd1 {[%clk 01:21:19]} {[%emt 00:01:28]} Re8 {[%clk
01:16:25]} {[%emt 00:02:57]} 14. Qf2 {[%clk 01:19:47]} {[%emt 00:02:03]} b5
{[%clk 01:15:38]} {[%emt 00:01:17]} 15. Bf4 {[%clk 01:18:42]} {[%emt 00:01:30]}
Rb7 {[%clk 01:14:14]} {[%emt 00:01:58]} 16. Ne2 {[%clk 01:12:32]} {[%emt
00:06:40]} d4 {[%clk 01:09:01]} {[%emt 00:05:44]} 17. c3 {[%clk 01:09:11]}
{[%emt 00:03:50]} dxc3 {[%clk 01:02:21]} {[%emt 00:07:11]} 18. e5 {[%clk
01:09:20]} {[%emt 00:00:21]} cxb2 {[%emt 00:02:12]} 19. Rab1 {[%clk 01:08:50]}
{[%emt 00:00:58]} Nd5 {[%clk 00:59:19]} {[%emt 00:01:52]} 20. Qg3 {[%clk
01:07:02]} {[%emt 00:02:16]} Nxf4 {[%clk 00:58:03]} {[%emt 00:01:48]} 21. Nxf4
{[%clk 01:06:20]} {[%emt 00:01:09]} Nxe5 {[%clk 00:56:15]} {[%emt 00:02:20]} 22.
Bh7+ {[%clk 01:06:15]} {[%emt 00:00:32]} Kxh7 {[%clk 00:56:30]} {[%emt
00:00:18]} 23. Rxd8 {[%clk 01:06:39]} {[%emt 00:00:06]} Rxd8 {[%clk 00:56:52]}
{[%emt 00:00:08]} 24. Nh5 {[%clk 01:06:51]} {[%emt 00:00:17]} Ng6 {[%clk
00:56:16]} {[%emt 00:01:07]} 25. Rxb2 {[%clk 01:06:30]} {[%emt 00:00:49]} Rbd7
{[%clk 00:55:56]} {[%emt 00:00:52]} 26. h3 {[%clk 01:06:17]} {[%emt 00:00:39]}
Rd5 {[%clk 00:55:15]} {[%emt 00:01:15]} 27. Qc7 {[%clk 01:04:38]} {[%emt
00:02:09]} R5d7 {[%clk 00:53:43]} {[%emt 00:02:03]} 28. Qc3 {[%clk 01:03:40]}
{[%emt 00:01:10]} e5 {[%clk 00:51:18]} {[%emt 00:03:12]} 29. Ng3 {[%clk
01:03:38]} {[%emt 00:00:30]} f5 {[%clk 00:49:19]} {[%emt 00:02:32]} 30. Nf1
{[%clk 01:03:22]} {[%emt 00:00:38]} Rd3 {[%clk 00:45:01]} {[%emt 00:04:55]} 31.
Qa5 {[%clk 01:03:13]} {[%emt 00:00:39]} R8d4 {[%clk 00:44:38]} {[%emt
00:00:53]} 32. Rd2 {[%clk 01:02:31]} {[%emt 00:01:11]} Ra4 {[%emt 00:03:31]} 33.
Qc7 {[%clk 01:00:55]} {[%emt 00:00:16]} Rc4 {[%clk 00:42:44]} {[%emt 00:01:14]}
34. Qb6 {[%clk 01:00:28]} {[%emt 00:00:54]} Rxa3 {[%clk 00:41:37]} {[%emt
00:01:40]} 35. Ne3 {[%clk 01:00:04]} {[%emt 00:00:51]} Rcc3 {[%clk 00:39:32]}
{[%emt 00:02:38]} 36. Nd5 {[%clk 00:59:40]} {[%emt 00:00:49]} Rd3 {[%clk
00:36:59]} {[%emt 00:03:08]} 37. Rxd3 {[%clk 00:59:43]} {[%emt 00:00:27]} Rxd3
{[%clk 00:37:26]} {[%emt 00:00:03]} 38. Qd8 {[%clk 00:59:54]} {[%emt 00:00:10]}
Nf4 {[%clk 00:35:59]} {[%emt 00:02:07]} 39. Qxc8 {[%clk 00:59:30]} {[%emt
00:00:52]} Rxd5 {[%clk 00:35:38]} {[%emt 00:00:52]} 40. Qxf5+ {[%clk 00:59:38]}
{[%emt 00:00:20]} Ng6 {[%clk 00:35:06]} {[%emt 00:01:04]} 41. h4 {[%clk
00:59:38]} {[%emt 00:00:29]} Rd1+ {[%clk 00:34:16]} {[%emt 00:01:21]} 42. Kh2
{[%clk 00:59:31]} {[%emt 00:00:27]} Rd6 {[%clk 00:31:47]} {[%emt 00:03:09]} 43.
h5 {[%clk 00:59:50]} {[%emt 00:00:10]} b4 {[%clk 00:31:28]} {[%emt 00:00:50]}
44. hxg6+ {[%clk 01:00:03]} {[%emt 00:00:17]} Rxg6 {[%clk 00:31:47]} {[%emt
00:00:12]} 45. Qe4 {[%clk 01:00:12]} {[%emt 00:00:19]} a5 {[%clk 00:31:02]}
{[%emt 00:01:16]} 46. Qxe5 {[%clk 01:00:27]} {[%emt 00:00:13]} Rb6 {[%clk
00:30:25]} {[%emt 00:01:10]} 47. Qxa5 {[%clk 01:00:44]} {[%emt 00:00:12]} Rb8
{[%clk 00:30:21]} {[%emt 00:00:35]} 48. Qf5+ {[%clk 01:00:36]} {[%emt
00:00:30]} Kh8 {[%clk 00:30:30]} {[%emt 00:00:28]} 49. Qe5 {[%clk 01:01:02]}
{[%emt 00:00:04]} Rb6 {[%clk 00:27:56]} {[%emt 00:03:04]} 50. Qc7 {[%clk
01:01:21]} {[%emt 00:00:08]} Rf6 {[%clk 00:24:34]} {[%emt 00:03:55]} 51. Qb8+
{[%clk 01:01:41]} {[%emt 00:00:08]} Kh7 {[%clk 00:24:53]} {[%emt 00:00:13]} 52.
Qxb4 {[%emt 00:00:19]} h5 {[%emt 00:10:13]} 53. Qe4+ {[%clk 01:02:12]} {[%emt
00:00:21]} Kg8 {[%clk 00:15:04]} {[%emt 00:00:24]} 54. Qe8+ {[%clk 01:02:34]}
{[%emt 00:00:08]} Kh7 {[%clk 00:15:26]} {[%emt 00:00:08]} 55. Kg1 {[%clk
01:02:47]} {[%emt 00:00:13]} Rh6 {[%clk 00:15:27]} {[%emt 00:00:33]} 56. Qe4+
{[%clk 01:03:03]} {[%emt 00:00:12]} Kg8 {[%clk 00:15:45]} {[%emt 00:00:14]} 57.
Kf2 {[%clk 01:03:27]} {[%emt 00:00:06]} h4 {[%clk 00:14:38]} {[%emt 00:01:38]}
58. Qg4 {[%clk 01:03:23]} {[%emt 00:00:28]} Kh7 {[%clk 00:14:27]} {[%emt
00:00:47]} 59. Qh3 {[%clk 01:03:46]} {[%emt 00:00:06]} Kg8 {[%clk 00:14:25]}
{[%emt 00:00:33]} 60. g4 {[%clk 01:04:05]} {[%emt 00:00:10]} hxg3+ {[%clk
00:14:32]} {[%emt 00:00:24]} 61. Qxg3 {[%clk 01:04:23]} {[%emt 00:00:11]} Kh7
{[%clk 00:14:46]} {[%emt 00:00:17]} 62. f4 {[%clk 01:04:31]} {[%emt 00:00:20]}
Kg8 {[%clk 00:14:54]} {[%emt 00:00:23]} 63. Kf3 {[%clk 01:04:47]} {[%emt
00:00:14]} Kh7 {[%clk 00:14:10]} {[%emt 00:01:15]} 64. f5 {[%clk 01:05:01]}
{[%emt 00:00:16]} Kg8 {[%clk 00:13:33]} {[%emt 00:01:07]} 65. Kf4 {[%clk
01:05:07]} {[%emt 00:00:19]} Kh7 {[%clk 00:10:41]} {[%emt 00:03:26]} 66. Qd3
{[%clk 01:04:49]} {[%emt 00:00:43]} Kh8 {[%clk 00:06:08]} {[%emt 00:05:09]} 67.
Kg5 {[%clk 01:04:18]} {[%emt 00:00:57]} Kg8 {[%clk 00:06:17]} {[%emt 00:00:25]}
68. Qd5+ {[%clk 01:02:45]} {[%emt 00:01:59]} Kh7 {[%clk 00:05:37]} {[%emt
00:01:14]} 69. Qf7 {[%clk 01:02:45]} {[%emt 00:00:30]} Kh8 {[%clk 00:05:50]}
{[%emt 00:00:17]} 70. Kf4 {[%clk 01:02:17]} {[%emt 00:00:55]} Kh7 {[%clk
00:05:48]} {[%emt 00:00:35]} 71. Ke5 {[%clk 01:02:09]} {[%emt 00:00:37]} Kh8
{[%clk 00:06:04]} {[%emt 00:00:15]} 72. Qe6 {[%clk 01:02:00]} {[%emt 00:00:39]}
Kh7 {[%clk 00:03:46]} {[%emt 00:02:48]} 73. Kd6 {[%clk 01:01:21]} {[%emt
00:01:09]} Rf6 {[%clk 00:02:54]} {[%emt 00:01:22]} 74. Ke7 {[%clk 01:01:13]}
{[%emt 00:00:36]} Rxe6+ {[%clk 00:01:40]} {[%emt 00:01:46]} 75. fxe6 {[%clk
01:01:39]} {[%emt 00:00:03]} Kg8 {[%clk 00:01:43]} {[%emt 00:00:28]} 76. Kd7
{[%clk 01:02:03]} {[%emt 00:00:06]} g5 {[%clk 00:02:04]} {[%emt 00:00:09]} 77.
e7 {[%clk 01:02:28]} {[%emt 00:00:06]} g4 {[%clk 00:02:30]} {[%emt 00:00:04]}
78. e8=Q+ {[%clk 01:02:54]} {[%emt 00:00:04]} Kg7 {[%clk 00:02:52]} {[%emt
00:00:07]} 79. Qe5 {[%clk 01:03:11]} {[%emt 00:00:11]} Kh6 {[%clk 00:03:07]}
{[%emt 00:00:17]} 80. Qg3 {[%clk 01:03:35]} {[%emt 00:00:05]} Kh5 {[%clk
00:03:18]} {[%emt 00:00:19]} 81. Ke6 {[%clk 01:03:54]} {[%emt 00:00:07]} Kg5
{[%clk 00:03:35]} {[%emt 00:00:18]} 82. Ke5 {[%clk 01:04:12]} {[%emt 00:00:12]}
Kh5 {[%clk 00:03:48]} {[%emt 00:00:17]} 83. Kf6 {[%clk 01:04:32]} {[%emt
00:00:10]} Kh6 {[%clk 00:04:10]} {[%emt 00:00:09]} 84. Qh4 {[%clk 01:04:56]}
{[%emt 00:00:04]} 1-0

[Event "NJSK 2021 Jeugd C"]
[Site "Almelo, Netherlands"]
[Date "2021.08.02"]
[Round "2.11"]
[White "Aravindhan, Achyuth"]
[Black "Sazonov, Fedor"]
[Result "1-0"]
[TimeControl "90min + 30sec/move"]
[WhiteElo "1031"]
[BlackElo "1650"]

1. e4 {[%clk 01:30:58]} {[%emt 00:00:02]} c5 {[%clk 01:30:59]} {[%emt
00:00:01]} 2. Nf3 {[%clk 01:31:23]} {[%emt 00:00:06]} d6 {[%clk 01:31:26]}
{[%emt 00:00:03]} 3. d4 {[%clk 01:31:44]} {[%emt 00:00:09]} cxd4 {[%clk
01:31:52]} {[%emt 00:00:04]} 4. Nxd4 {[%clk 01:32:07]} {[%emt 00:00:07]} Nf6
{[%clk 01:32:16]} {[%emt 00:00:07]} 5. Nc3 {[%clk 01:32:29]} {[%emt 00:00:09]}
g6 {[%clk 01:32:38]} {[%emt 00:00:08]} 6. Bb5+ {[%clk 01:32:17]} {[%emt
00:00:41]} Bd7 {[%clk 01:32:23]} {[%emt 00:00:44]} 7. Bxd7+ {[%clk 01:32:37]}
{[%emt 00:00:10]} Qxd7 {[%clk 01:32:48]} {[%emt 00:00:05]} 8. O-O {[%clk
01:32:55]} {[%emt 00:00:12]} Bg7 {[%clk 01:33:07]} {[%emt 00:00:11]} 9. Bg5
{[%clk 01:33:00]} {[%emt 00:00:25]} O-O {[%clk 01:33:21]} {[%emt 00:00:16]} 10.
Re1 {[%clk 01:32:50]} {[%emt 00:00:39]} Nc6 {[%clk 01:29:31]} {[%emt 00:04:22]}
11. Nxc6 {[%clk 01:33:00]} {[%emt 00:00:19]} Qxc6 {[%clk 01:29:57]} {[%emt
00:00:05]} 12. Nd5 {[%clk 01:32:55]} {[%emt 00:00:35]} Rfe8 {[%clk 01:27:17]}
{[%emt 00:03:10]} 13. c3 {[%clk 01:30:09]} {[%emt 00:03:15]} Nxd5 {[%clk
01:22:07]} {[%emt 00:05:41]} 14. exd5 {[%clk 01:30:06]} {[%emt 00:00:32]} Qd7
{[%clk 01:21:57]} {[%emt 00:00:40]} 15. Qd2 {[%clk 01:26:51]} {[%emt 00:03:46]}
Rac8 {[%clk 01:20:05]} {[%emt 00:02:21]} 16. Re4 {[%clk 01:25:34]} {[%emt
00:01:48]} f6 {[%clk 01:18:37]} {[%emt 00:01:57]} 17. Bh6 {[%clk 01:24:42]}
{[%emt 00:01:21]} Qf5 {[%clk 01:13:58]} {[%emt 00:05:05]} 18. Rae1 {[%clk
01:21:53]} {[%emt 00:03:22]} Bxh6 {[%clk 01:10:26]} {[%emt 00:04:05]} 19. Qxh6
{[%clk 01:22:00]} {[%emt 00:00:22]} Qxd5 {[%clk 01:08:24]} {[%emt 00:02:33]} 20.
Rh4 {[%clk 01:21:46]} {[%emt 00:00:43]} Qf7 {[%clk 01:08:41]} {[%emt 00:00:14]}
21. Re3 {[%clk 01:21:44]} {[%emt 00:00:32]} g5 {[%clk 01:08:20]} {[%emt
00:00:50]} 22. Rh5 {[%clk 01:21:36]} {[%emt 00:00:39]} Qg6 {[%clk 01:08:35]}
{[%emt 00:00:14]} 23. Qxg6+ {[%clk 01:16:50]} {[%emt 00:05:16]} hxg6 {[%clk
01:09:01]} {[%emt 00:00:04]} 24. Rhh3 {[%clk 01:17:10]} {[%emt 00:00:10]} Kg7
{[%clk 01:08:43]} {[%emt 00:00:48]} 25. Re4 {[%clk 01:14:34]} {[%emt 00:03:05]}
Rh8 {[%clk 01:08:51]} {[%emt 00:00:22]} 26. Rxe7+ {[%clk 01:14:40]} {[%emt
00:00:26]} Kg8 {[%clk 01:08:55]} {[%emt 00:00:26]} 27. Rxh8+ {[%clk 01:14:59]}
{[%emt 00:00:11]} Kxh8 {[%clk 01:09:24]} {[%emt 00:00:01]} 28. Rxb7 {[%clk
01:15:16]} {[%emt 00:00:12]} d5 {[%clk 01:07:32]} {[%emt 00:02:22]} 29. Rd7
{[%clk 01:15:34]} {[%emt 00:00:12]} Rb8 {[%clk 01:06:51]} {[%emt 00:01:11]} 30.
b3 {[%clk 01:14:59]} {[%emt 00:01:05]} Rc8 {[%clk 01:05:53]} {[%emt 00:01:29]}
31. Rxd5 {[%clk 01:13:16]} {[%emt 00:02:12]} Rxc3 {[%clk 01:06:12]} {[%emt
00:00:12]} 32. g3 {[%clk 01:13:39]} {[%emt 00:00:06]} Rc7 {[%clk 01:01:06]}
{[%emt 00:05:37]} 33. a4 {[%clk 01:13:18]} {[%emt 00:00:51]} Kg7 {[%clk
01:00:23]} {[%emt 00:01:13]} 34. b4 {[%clk 01:13:30]} {[%emt 00:00:18]} Kf7
{[%clk 01:00:31]} {[%emt 00:00:21]} 35. Rd6 {[%clk 01:11:22]} {[%emt 00:02:39]}
Ke7 {[%clk 00:54:49]} {[%emt 00:06:12]} 36. Ra6 {[%clk 01:11:37]} {[%emt
00:00:15]} g4 {[%clk 00:54:54]} {[%emt 00:00:25]} 37. a5 {[%clk 01:11:55]}
{[%emt 00:00:12]} Rb7 {[%clk 00:54:40]} {[%emt 00:00:44]} 38. Kf1 {[%clk
01:09:29]} {[%emt 00:02:55]} Rxb4 {[%clk 00:54:10]} {[%emt 00:01:01]} 39. Rxa7+
{[%clk 01:09:49]} {[%emt 00:00:10]} Ke6 {[%clk 00:54:33]} {[%emt 00:00:06]} 40.
a6 {[%clk 01:09:56]} {[%emt 00:00:24]} Rb2 {[%clk 00:54:29]} {[%emt 00:00:34]}
41. Rb7 {[%clk 01:08:02]} {[%emt 00:02:24]} Ra2 {[%clk 00:54:39]} {[%emt
00:00:21]} 42. a7 {[%clk 01:07:54]} {[%emt 00:00:37]} g5 {[%clk 00:54:22]}
{[%emt 00:00:47]} 43. Ke1 {[%clk 01:08:15]} {[%emt 00:00:08]} f5 {[%clk
00:54:44]} {[%emt 00:00:08]} 44. Kd1 {[%clk 01:08:32]} {[%emt 00:00:14]} Ra5
{[%clk 00:53:43]} {[%emt 00:01:31]} 45. Rb6+ {[%clk 01:08:38]} {[%emt
00:00:24]} Ke5 {[%clk 00:49:50]} {[%emt 00:04:22]} 46. Rb5+ {[%clk 01:07:02]}
{[%emt 00:02:07]} Rxb5 {[%clk 00:49:54]} {[%emt 00:00:26]} 47. a8=Q {[%clk
01:07:22]} {[%emt 00:00:11]} Rd5+ {[%clk 00:46:37]} {[%emt 00:03:46]} 48. Ke2
{[%clk 01:06:58]} {[%emt 00:00:53]} Rd4 {[%clk 00:45:20]} {[%emt 00:01:47]} 49.
Qe8+ {[%clk 01:07:02]} {[%emt 00:00:27]} Kd5 {[%clk 00:45:38]} {[%emt
00:00:12]} 50. Qd8+ {[%clk 01:07:03]} {[%emt 00:00:29]} Ke5 {[%clk 00:46:01]}
{[%emt 00:00:06]} 51. Qxg5 {[%clk 01:07:21]} {[%emt 00:00:11]} Re4+ {[%clk
00:46:08]} {[%emt 00:00:25]} 52. Kd3 {[%clk 01:07:30]} {[%emt 00:00:20]} Rd4+
{[%clk 00:45:48]} {[%emt 00:00:50]} 53. Kc3 {[%clk 01:07:35]} {[%emt 00:00:25]}
Re4 {[%clk 00:46:14]} {[%emt 00:00:05]} 54. Qe7+ {[%clk 01:06:35]} {[%emt
00:01:30]} Kd5 {[%clk 00:46:33]} {[%emt 00:00:10]} 55. Qd7+ {[%clk 01:06:58]}
{[%emt 00:00:07]} Ke5 {[%clk 00:47:01]} {[%emt 00:00:02]} 56. Qb5+ {[%clk
01:07:21]} {[%emt 00:00:07]} Kf6 {[%clk 00:47:18]} {[%emt 00:00:13]} 57. Qb6+
{[%clk 01:07:35]} {[%emt 00:00:17]} Ke5 {[%clk 00:47:26]} {[%emt 00:00:20]} 58.
Qc5+ {[%clk 01:07:59]} {[%emt 00:00:07]} Kf6 {[%clk 00:47:41]} {[%emt
00:00:15]} 59. Qd6+ {[%clk 01:08:15]} {[%emt 00:00:14]} Kg5 {[%clk 00:47:39]}
{[%emt 00:00:31]} 60. Qd8+ {[%clk 01:08:19]} {[%emt 00:00:27]} Kg6 {[%clk
00:48:08]} {[%emt 00:00:01]} 61. Qh8 {[%clk 01:08:11]} {[%emt 00:00:36]} Kf7
{[%clk 00:48:16]} {[%emt 00:00:22]} 62. h4 {[%clk 01:08:31]} {[%emt 00:00:12]}
gxh3 {[%clk 00:48:12]} {[%emt 00:00:33]} 63. Qxh3 {[%clk 01:08:52]} {[%emt
00:00:09]} Kf6 {[%clk 00:48:30]} {[%emt 00:00:11]} 64. Kd3 {[%clk 01:08:56]}
{[%emt 00:00:27]} Ra4 {[%clk 00:47:53]} {[%emt 00:01:08]} 65. Qh8+ {[%clk
01:09:04]} {[%emt 00:00:22]} Kg5 {[%clk 00:48:10]} {[%emt 00:00:12]} 66. Qg7+
{[%clk 01:09:17]} {[%emt 00:00:18]} Kh5 {[%clk 00:48:27]} {[%emt 00:00:13]} 67.
f3 {[%clk 01:09:13]} {[%emt 00:00:34]} Ra3+ {[%clk 00:48:45]} {[%emt 00:00:12]}
68. Ke2 {[%clk 01:09:33]} {[%emt 00:00:10]} Ra2+ {[%clk 00:49:09]} {[%emt
00:00:06]} 69. Ke3 {[%clk 01:09:51]} {[%emt 00:00:11]} Ra3+ {[%clk 00:49:30]}
{[%emt 00:00:10]} 70. Kf4 {[%clk 01:09:44]} {[%emt 00:00:36]} Ra4+ {[%clk
00:49:59]} {[%emt 00:00:02]} 71. Kxf5 {[%clk 01:09:49]} {[%emt 00:00:25]} Ra5+
{[%clk 00:50:24]} {[%emt 00:00:04]} 72. Qe5 {[%clk 01:10:04]} {[%emt 00:00:16]}
Rxe5+ {[%clk 00:50:53]} 73. Kxe5 {[%clk 01:10:26]} {[%emt 00:00:08]} Kg5 {[%clk
00:51:22]} {[%emt 00:00:02]} 74. g4 {[%clk 01:10:46]} {[%emt 00:00:09]} Kg6
{[%clk 00:51:44]} {[%emt 00:00:09]} 75. f4 {[%clk 01:11:10]} {[%emt 00:00:06]}
Kf7 {[%clk 00:52:09]} {[%emt 00:00:05]} 76. Kf5 {[%clk 01:11:29]} {[%emt
00:00:11]} Kg7 {[%clk 00:52:28]} {[%emt 00:00:10]} 77. Kg5 {[%clk 01:11:50]}
{[%emt 00:00:09]} Kf7 {[%clk 00:52:54]} {[%emt 00:00:04]} 78. f5 {[%clk
01:12:13]} {[%emt 00:00:08]} Kg7 {[%clk 00:53:17]} {[%emt 00:00:07]} 79. f6+
{[%clk 01:12:36]} {[%emt 00:00:07]} Kg8 {[%clk 00:53:34]} {[%emt 00:00:12]} 80.
Kf5 {[%clk 01:12:47]} {[%emt 00:00:19]} Kf7 {[%clk 00:53:54]} {[%emt 00:00:11]}
81. g5 {[%clk 01:12:16]} {[%emt 00:01:01]} Kf8 {[%clk 00:54:20]} {[%emt
00:00:04]} 82. g6 {[%clk 01:12:24]} {[%emt 00:00:22]} Kg8 {[%clk 00:54:47]}
{[%emt 00:00:02]} 83. Ke6 {[%clk 01:12:46]} {[%emt 00:00:09]} Kh8 {[%clk
00:54:48]} {[%emt 00:00:29]} 84. Ke7 {[%clk 01:13:06]} {[%emt 00:00:10]} Kg8
{[%clk 00:55:13]} {[%emt 00:00:05]} 85. f7+ {[%clk 01:13:28]} {[%emt 00:00:08]}
Kg7 {[%clk 00:55:35]} {[%emt 00:00:08]} 86. f8=Q Kxg6 {[%clk 00:55:57]} 87. Qf4
Kh5 {[%emt 00:00:23]} 88. Qg3 {[%clk 01:13:55]} {[%emt 00:00:08]} 1-0

[Event "NJSK 2021 Jeugd C"]
[Site "Almelo, Netherlands"]
[Date "2021.08.02"]
[Round "2.12"]
[White "Zecha, Oscar"]
[Black "Lankheet, Hidde"]
[Result "1-0"]
[TimeControl "90min + 30sec/move"]
[WhiteElo "1650"]
[BlackElo "1000"]

1. d4 {[%clk 01:30:57]} {[%emt 00:00:02]} d5 {[%clk 01:30:49]} {[%emt
00:00:12]} 2. c4 {[%clk 01:31:22]} {[%emt 00:00:06]} e6 {[%clk 01:31:04]}
{[%emt 00:00:14]} 3. Nf3 {[%clk 01:31:42]} {[%emt 00:00:10]} c6 {[%clk
01:31:16]} {[%emt 00:00:17]} 4. e3 {[%clk 01:31:47]} {[%emt 00:00:25]} Bd6
{[%clk 01:31:04]} {[%emt 00:00:43]} 5. b3 {[%clk 01:31:33]} {[%emt 00:00:44]}
Nf6 {[%clk 01:29:56]} {[%emt 00:01:38]} 6. Bb2 {[%clk 01:29:24]} {[%emt
00:02:39]} Nbd7 {[%clk 01:28:59]} {[%emt 00:01:27]} 7. Bd3 {[%clk 01:27:37]}
{[%emt 00:02:17]} Qc7 {[%clk 01:28:29]} {[%emt 00:01:00]} 8. Nbd2 {[%clk
01:25:52]} {[%emt 00:02:14]} c5 {[%clk 01:27:18]} {[%emt 00:01:41]} 9. Rc1
{[%clk 01:24:00]} {[%emt 00:02:22]} b6 {[%clk 01:26:47]} {[%emt 00:01:01]} 10.
O-O {[%clk 01:23:26]} {[%emt 00:01:05]} h5 {[%clk 01:24:37]} {[%emt 00:02:40]}
11. cxd5 {[%clk 01:16:06]} {[%emt 00:07:49]} exd5 {[%clk 01:24:15]} {[%emt
00:00:52]} 12. e4 {[%clk 01:10:50]} {[%emt 00:05:46]} Kf8 {[%clk 01:19:59]}
{[%emt 00:04:46]} 13. e5 {[%clk 01:10:25]} {[%emt 00:00:55]} Be7 {[%clk
01:18:29]} {[%emt 00:01:59]} 14. exf6 {[%clk 01:09:43]} {[%emt 00:01:13]} Bxf6
{[%clk 01:17:52]} {[%emt 00:01:07]} 15. Re1 {[%clk 01:07:10]} {[%emt 00:03:02]}
b5 {[%clk 01:14:32]} {[%emt 00:03:51]} 16. Ba3 {[%clk 01:04:50]} {[%emt
00:02:50]} b4 {[%clk 01:12:56]} {[%emt 00:02:07]} 17. Bxb4 {[%clk 01:05:08]}
{[%emt 00:00:12]} Be7 {[%clk 01:10:58]} {[%emt 00:02:28]} 18. Qe2 {[%clk
01:03:02]} {[%emt 00:02:35]} Qd8 {[%clk 01:08:15]} {[%emt 00:03:12]} 19. dxc5
{[%clk 01:01:38]} {[%emt 00:01:54]} Rb8 {[%clk 01:07:20]} {[%emt 00:01:27]} 20.
Ba3 {[%clk 01:00:01]} {[%emt 00:02:07]} Bb7 {[%clk 01:04:54]} {[%emt 00:02:56]}
21. Qxe7+ {[%clk 00:53:25]} {[%emt 00:07:05]} 1-0

[Event "NJSK 2021 Jeugd C"]
[Site "Almelo, Netherlands"]
[Date "2021.08.03"]
[Round "3.1"]
[White "Labruyere, Roger"]
[Black "Kumar, Prajit Sai"]
[Result "0-1"]
[TimeControl "90min + 30sec/move"]
[WhiteElo "2003"]
[BlackElo "1811"]

1. e4 {[%clk 01:30:57]} {[%emt 00:00:02]} c6 {[%clk 01:30:58]} {[%emt
00:00:04]} 2. d4 {[%clk 01:31:11]} {[%emt 00:00:15]} d5 {[%clk 01:31:26]}
{[%emt 00:00:01]} 3. e5 {[%clk 01:30:15]} {[%emt 00:01:26]} Bf5 {[%clk
01:31:51]} {[%emt 00:00:05]} 4. g4 {[%clk 01:30:37]} {[%emt 00:00:08]} Bd7
{[%clk 01:30:27]} {[%emt 00:01:54]} 5. Bg2 {[%clk 01:30:25]} {[%emt 00:00:43]}
e6 {[%clk 01:21:09]} {[%emt 00:09:48]} 6. Ne2 {[%clk 01:29:16]} {[%emt
00:01:38]} h5 {[%clk 01:19:30]} {[%emt 00:02:09]} 7. h3 {[%clk 01:28:44]}
{[%emt 00:01:01]} c5 {[%clk 01:17:25]} {[%emt 00:02:36]} 8. c3 {[%clk
01:27:58]} {[%emt 00:01:16]} Nc6 {[%clk 01:15:29]} {[%emt 00:02:27]} 9. Be3
{[%clk 01:23:00]} {[%emt 00:05:27]} hxg4 {[%clk 01:09:05]} {[%emt 00:06:55]} 10.
hxg4 {[%clk 01:23:25]} {[%emt 00:00:05]} Rxh1+ {[%clk 01:09:26]} {[%emt
00:00:08]} 11. Bxh1 {[%clk 01:23:53]} {[%emt 00:00:02]} Qh4 {[%clk 01:05:31]}
{[%emt 00:04:25]} 12. Ng3 {[%clk 01:23:51]} {[%emt 00:00:33]} Nh6 {[%clk
01:05:02]} {[%emt 00:00:59]} 13. Bf3 {[%clk 01:24:06]} {[%emt 00:00:14]} Be7
{[%clk 00:56:01]} {[%emt 00:09:31]} 14. Nd2 {[%clk 01:17:28]} {[%emt 00:07:08]}
cxd4 {[%clk 00:45:25]} {[%emt 00:11:07]} 15. cxd4 {[%clk 01:14:04]} {[%emt
00:03:54]} Nb4 {[%clk 00:39:07]} {[%emt 00:06:47]} 16. a3 {[%clk 00:56:08]}
Nd3+ {[%clk 00:39:07]} 17. Kf1 {[%clk 00:56:08]} Qh3+ {[%clk 00:39:07]} 18. Kg1
{[%clk 00:56:08]} g5 {[%clk 00:39:07]} 19. Ndf1 {[%clk 00:56:08]} Nf4 {[%clk
00:17:18]} {[%emt 00:59:25]} 20. Qd2 {[%clk 00:37:34]} O-O-O {[%clk 00:16:17]}
{[%emt 00:04:54]} 21. Bxf4 {[%clk 00:31:24]} gxf4 {[%clk 00:16:17]} 22. Qxf4
{[%clk 00:31:24]} Rg8 {[%clk 00:16:17]} 23. Qc1+ {[%clk 00:31:24]} Kb8 {[%clk
00:16:17]} 24. Bg2 {[%clk 00:31:24]} Qh4 {[%clk 00:16:17]} 25. f3 {[%clk
00:31:24]} Bb5 {[%clk 00:16:17]} 26. Qe1 {[%clk 00:31:24]} f5 {[%clk 00:16:17]}
27. exf6 {[%clk 00:31:24]} Bxf6 {[%clk 00:16:17]} 28. Qe3 {[%clk 00:31:24]}
Bxf1 {[%clk 00:16:17]} 29. Nxf1 {[%clk 00:31:24]} Nxg4 {[%clk 00:16:17]} 30.
fxg4 {[%clk 00:31:24]} Qxg4 {[%clk 00:16:17]} 31. Qg3+ {[%clk 00:31:24]} Qxg3
{[%clk 00:16:17]} 32. Nxg3 {[%clk 00:31:24]} Bxd4+ {[%clk 00:16:17]} 33. Kh2
{[%clk 00:31:24]} Be5 {[%clk 00:16:17]} 34. Rb1 {[%clk 00:31:24]} Rxg3 {[%clk
00:16:17]} 35. Kg1 {[%clk 00:31:24]} Kc7 {[%clk 00:16:17]} 36. b3 {[%clk
00:01:44]} {[%emt 00:59:37]} Kd6 {[%clk 00:07:34]} {[%emt 00:00:57]} 37. Kf2
{[%clk 00:01:59]} {[%emt 00:00:14]} Rc3 {[%clk 00:07:54]} {[%emt 00:00:11]} 38.
Bf3 {[%clk 00:01:42]} {[%emt 00:00:46]} Rc2+ {[%clk 00:07:00]} {[%emt
00:01:25]} 39. Ke3 {[%clk 00:01:32]} {[%emt 00:00:39]} Rb2 {[%clk 00:06:58]}
{[%emt 00:00:33]} 40. Rxb2 {[%clk 00:01:51]} {[%emt 00:00:10]} Bxb2 {[%clk
00:07:22]} {[%emt 00:00:06]} 41. a4 {[%clk 00:02:14]} a5 {[%clk 00:07:22]} 42.
Kd3 {[%clk 00:02:14]} e5 {[%clk 00:07:22]} 43. Kc2 {[%clk 00:02:14]} Ba3 {[%clk
00:07:22]} 44. Kc3 {[%clk 00:02:14]} Bb4+ {[%clk 00:07:22]} 0-1